bitfinex-derivatives/quotes_BNBF0:USTF0_20250715
["timestamp","ask_amount","ask_price","bid_price","bid_amount"]
[1752608571977,0.25373123,686.19,685.33,0.97945871]
[1752608572177,0.25373123,686.19,685.32,1.2332214]
[1752608573283,0.25373123,686.19,685.33,0.97945871]
[1752608573985,0.25373123,686.19,685.32,0.25376269]
[1752608574885,0.25373123,686.19,685.34,0.97790564]
[1752608575486,0.25373123,686.19,685.32,0.25376269]
[1752608577186,0.25373123,686.19,685.35,0.97827827]
[1752608577586,1.23086383,686.19,685.35,0.97827827]
[1752608577885,0.25373123,686.19,685.35,0.97827827]
[1752608578085,0.9771326,686.16,685.32,0.25376269]
[1752608578285,0.9771326,686.15,685.32,1.23204096]
[1752608579484,0.9771326,686.15,685.33,0.97827827]
[1752608579683,0.9771326,686.14,685.33,0.97827827]
[1752608579882,0.9771326,686.13,685.34,0.97827827]
[1752608580583,0.9771326,686.17,685.32,0.25376269]
[1752608581484,0.9771326,686.17,685.32,1.23204096]
[1752608581688,0.9771326,686.16,685.32,1.23204096]
[1752608584285,0.9771326,686.16,685.33,0.97827827]
[1752608584590,0.25373123,686.19,685.32,0.25376269]
[1752608584889,0.97779423,686.16,685.33,0.97904401]
[1752608585486,0.97779423,686.15,685.33,0.97904401]
[1752608588287,0.97779423,686.14,685.33,0.97904401]
[1752608589192,0.97779423,686.14,685.34,0.97904401]
[1752608590291,0.97779423,686.13,685.34,0.97904401]
[1752608590494,0.97779423,686.08,685.38,0.97904401]
[1752608591298,0.97779423,686.12,685.35,0.97904401]
[1752608593597,0.97779423,686.12,685.33,0.97904401]
[1752608593897,0.97779423,686.12,685.32,0.25376269]
[1752608594195,0.97779423,686.11,685.32,0.25376269]
[1752608594497,0.97779423,686.12,685.32,0.25376269]
[1752608595197,0.97779423,686.11,685.32,0.25376269]
[1752608596096,0.97779423,686.09,685.32,0.25376269]
[1752608598701,0.97779423,685.97,685.32,0.25376269]
[1752608602105,0.97779423,685.98,685.32,0.25376269]
[1752608602303,0.97779423,685.98,685.26,0.97904401]
[1752608603002,0.97779423,685.97,685.26,0.97904401]
[1752608603305,0.97779423,685.97,685.23,0.25378767]
[1752608603306,0.97779423,685.96,685.25,0.97904401]
[1752608603506,0.97779423,685.97,685.24,0.97904401]
[1752608603701,0.97779423,686.01,685.23,0.25378767]
[1752608604406,0.97825813,685.99,685.23,0.25378767]
[1752608604902,0.97825813,685.96,685.23,0.25378767]
[1752608605205,0.97825813,685.95,685.23,0.25378767]
[1752608606609,0.97825813,685.94,685.23,0.25378767]
[1752608607505,0.97825813,685.93,685.23,0.25378767]
[1752608608508,0.97825813,685.92,685.23,0.25378767]
[1752608609312,0.97825813,685.91,685.23,0.25378767]
[1752608609512,0.97825813,685.9,685.23,0.25378767]
[1752608609807,0.97825813,685.87,685.23,0.25378767]
[1752608610411,0.97825813,685.86,685.18,0.97974081]
[1752608611308,0.97825813,685.86,685.17,0.97974081]
[1752608611511,0.97825813,685.79,685.22,0.97974081]
[1752608612207,0.97825813,685.8,685.22,0.97974081]
[1752608612709,0.97825813,685.81,685.21,0.97974081]
[1752608613105,0.97825813,685.81,685.2,0.97974081]
[1752608613608,0.97825813,685.78,685.17,0.97974081]
[1752608614307,0.97825813,685.79,685.16,0.97974081]
[1752608614513,0.97825813,685.8,685.16,0.97974081]
[1752608615211,0.97825813,685.8,685.14,0.25382377]
[1752608615212,0.97825813,685.8,685.15,0.97974081]
[1752608615914,0.97825813,685.81,685.15,0.97974081]
[1752608618517,0.97825813,685.82,685.14,1.23356458]
[1752608619316,0.97825813,685.83,685.14,1.23356458]
[1752608619516,0.97825813,685.83,685.14,0.25382377]
[1752608619715,0.97825813,685.82,685.14,0.25382377]
[1752608620219,0.97825813,685.83,685.14,0.25382377]
[1752608622516,0.97825813,685.82,685.14,1.23356458]
[1752608624221,0.97825813,685.81,685.14,1.23356458]
[1752608626328,0.97825813,685.81,685.14,0.25382377]
[1752608626724,0.97825813,685.82,685.14,0.25382377]
[1752608628029,0.97825813,685.83,685.14,0.25382377]
[1752608628529,0.97825813,685.85,685.14,0.25382377]
[1752608628829,0.97825813,685.86,685.14,0.25382377]
[1752608629232,0.97825813,685.85,685.14,0.25382377]
[1752608631229,0.97825813,685.87,685.14,0.25382377]
[1752608631434,0.97825813,685.87,685.09,0.97974081]
[1752608631831,0.97825813,685.87,685.08,0.97974081]
[1752608632031,0.97825813,685.87,685.09,0.97974081]
[1752608632331,0.97825813,685.87,685.08,0.97974081]
[1752608632527,0.97825813,685.86,685.09,0.97974081]
[1752608632727,0.97825813,685.85,685.1,0.97974081]
[1752608633433,0.97825813,685.79,685.06,0.25384506]
[1752608634132,0.97825813,685.79,684.17,3.2532889]
[1752608634133,0.97825813,685.77,685.01,0.97974081]
[1752608634332,0.97825813,685.77,684.86,1.304371]
[1752608634333,0.97825813,685.77,685.0,0.97974081]
[1752608634528,0.97825813,685.7,684.97,0.25387469]
[1752608634929,0.97825813,685.69,684.97,0.25387469]
[1752608635335,0.97825813,685.7,684.97,0.25387469]
[1752608635540,0.97825813,685.7,684.93,0.97974081]
[1752608635741,0.97825813,685.67,684.83,1.2336581]
[1752608635937,0.97825813,685.67,684.83,0.25391729]
[1752608636144,0.97825813,685.62,684.83,0.25391729]
[1752608637143,0.9778117,685.62,684.83,0.25391729]
[1752608637343,0.9778117,685.64,684.83,0.25391729]
[1752608637539,0.9778117,685.58,684.83,0.25391729]
[1752608638243,0.9778117,685.59,684.83,0.25391729]
[1752608638443,0.9778117,685.6,684.83,0.25391729]
[1752608638842,0.9778117,685.55,684.83,0.25391729]
[1752608639343,0.9778117,685.56,684.83,0.25391729]
[1752608639546,0.9778117,685.55,684.83,0.25391729]
[1752608639743,0.9778117,685.67,684.83,0.25391729]
[1752608640747,0.9778117,685.68,684.83,0.25391729]
[1752608641444,0.9778117,685.69,684.83,0.25391729]
[1752608642448,0.9778117,685.7,684.83,0.25391729]
[1752608643350,0.9778117,685.63,684.83,0.25391729]
[1752608644747,0.9778117,685.66,684.83,0.25391729]
[1752608645751,0.9778117,685.64,684.83,0.25391729]
[1752608646251,0.9778117,685.63,684.83,0.25391729]
[1752608646547,0.9778117,685.64,684.83,0.25391729]
[1752608647046,0.9778117,685.65,684.83,0.25391729]
[1752608648449,0.9778117,685.66,684.83,0.25391729]
[1752608649656,0.9778117,685.64,684.83,0.25391729]
[1752608650450,0.9778117,685.65,684.83,0.25391729]
[1752608650751,0.25373123,686.19,684.83,0.25391729]
[1752608650752,0.9778117,685.61,684.83,0.25391729]
[1752608650951,0.9778117,685.62,684.83,0.25391729]
[1752608651152,0.9778117,685.64,684.83,0.25391729]
[1752608651353,0.9778117,685.65,684.83,0.25391729]
[1752608652054,0.9778117,685.69,684.83,0.25391729]
[1752608654557,0.9778117,685.67,684.83,0.25391729]
[1752608656057,0.9778117,685.65,684.83,0.25391729]
[1752608656457,0.9778117,685.64,684.83,0.25391729]
[1752608658758,0.9778117,685.66,684.83,0.25391729]
[1752608658958,0.9778117,685.67,684.83,0.25391729]
[1752608659156,0.9778117,685.68,684.83,0.25391729]
[1752608660155,0.9778117,685.67,684.83,0.25391729]
[1752608660960,0.9778117,685.66,684.83,0.25391729]
[1752608661157,0.9778117,685.67,684.83,0.25391729]
[1752608661457,0.9778117,685.69,684.83,0.25391729]
[1752608662256,0.9778117,685.68,684.83,0.25391729]
[1752608662760,0.9778117,685.73,684.83,0.25391729]
[1752608663256,0.9778117,685.75,684.83,0.25391729]
[1752608665356,0.9778117,685.74,684.83,0.25391729]
[1752608665856,0.9778117,685.75,684.83,0.25391729]
[1752608666862,0.9778117,685.74,684.83,0.25391729]
[1752608667162,0.9778117,685.76,684.83,0.25391729]
[1752608668261,0.9778117,685.75,684.83,0.25391729]
[1752608670361,0.9778117,685.73,684.83,0.25391729]
[1752608671067,0.9778117,685.75,684.83,0.25391729]
[1752608671862,0.9778117,685.74,684.83,0.25391729]
[1752608673167,0.9778117,685.73,684.83,0.25391729]
[1752608674563,0.9778117,685.69,684.83,0.25391729]
[1752608674762,0.9778117,685.68,684.83,0.25391729]
[1752608676263,0.9778117,685.6,684.83,0.25391729]
[1752608676662,0.9778117,685.59,684.83,0.25391729]
[1752608676863,0.9778117,685.59,684.77,0.97981702]
[1752608677168,0.9778117,685.56,684.74,0.97981702]
[1752608677364,0.9778117,685.56,684.75,0.97981702]
[1752608677565,0.9778117,685.54,684.73,1.23377137]
[1752608678270,0.9778117,685.51,684.73,0.25395435]
[1752608678570,0.9778117,685.5,684.73,0.25395435]
[1752608680170,0.9778117,685.49,684.73,0.25395435]
[1752608680670,0.9778117,685.5,684.73,0.25395435]
[1752608680972,0.9778117,685.5,684.7,0.97981702]
[1752608681170,0.9778117,685.5,684.43,1.9565565]
[1752608681171,0.9778117,685.52,684.65,0.97981702]
[1752608681371,0.9778117,685.54,684.67,0.97981702]
[1752608681572,0.9778117,685.52,684.67,0.97981702]
[1752608682073,0.9778117,685.52,684.68,0.97981702]
[1752608682270,0.9778117,685.54,684.66,0.97981702]
[1752608683271,0.9778117,685.53,684.67,0.97981702]
[1752608683472,0.9778117,685.55,684.66,0.97981702]
[1752608683675,0.9778117,685.54,684.66,0.97981702]
[1752608684973,0.9778117,685.52,684.67,0.97981702]
[1752608685176,0.9778117,685.49,684.69,0.97981702]
[1752608685376,0.9778117,685.49,684.54,1.304371]
[1752608685377,0.9778117,685.48,684.7,0.97981702]
[1752608686277,0.9778117,685.47,684.71,0.97981702]
[1752608686573,0.9778117,685.49,684.69,0.97981702]
[1752608687275,0.9778117,685.5,684.69,0.97981702]
[1752608688277,0.9778117,685.5,684.7,0.97981702]
[1752608688983,0.9778117,685.49,684.67,0.97981702]
[1752608689282,0.9778117,685.48,684.69,0.97981702]
[1752608689483,0.9778117,685.39,684.59,0.97981702]
[1752608689679,0.9778117,685.38,684.59,0.97981702]
[1752608689881,0.9778117,685.39,684.59,0.97981702]
[1752608690282,0.9778117,685.38,684.6,0.97981702]
[1752608690879,0.9778117,685.37,684.59,0.97981702]
[1752608691285,0.9778117,685.36,684.6,0.97981702]
[1752608691685,0.9778117,685.3,684.53,0.97981702]
[1752608692386,0.9778117,685.28,684.54,0.97981702]
[1752608692586,1.3028434,685.46,684.53,0.97981702]
[1752608692587,0.9778117,685.29,684.53,0.97981702]
[1752608692882,1.3028434,685.46,684.53,0.97981702]
[1752608692883,0.9778117,685.28,684.53,0.97981702]
[1752608693483,0.9778117,685.26,684.54,0.97981702]
[1752608693985,0.9778117,685.24,684.53,0.97981702]
[1752608694183,0.9778117,685.23,684.54,0.97981702]
[1752608694388,0.9778117,685.24,684.53,0.97981702]
[1752608694683,0.9778117,685.22,684.51,0.97981702]
[1752608694887,0.9778117,685.21,684.52,0.97981702]
[1752608695086,0.9778117,685.2,684.53,0.97981702]
[1752608695287,0.9778117,685.2,684.52,0.97981702]
[1752608695784,1.9542652,685.49,684.52,0.97981702]
[1752608695785,0.9778117,685.21,684.52,0.97981702]
[1752608696485,0.9778117,685.21,684.49,0.97981702]
[1752608697488,1.3028434,685.36,684.44,0.25402294]
[1752608697688,3.2515286,686.11,684.44,0.25402294]
[1752608698088,0.25373123,686.19,684.44,0.25402294]
[1752608704292,0.98032939,685.28,684.55,0.98129447]
[1752608704493,0.98032939,685.34,684.51,0.98129447]
[1752608705996,0.98032939,685.34,684.44,0.25402294]
[1752608705997,0.98032939,685.27,684.44,0.25402294]
[1752608706194,0.98032939,685.28,684.44,0.25402294]
[1752608706695,0.98032939,685.27,684.44,0.25402294]
[1752608707196,0.25373123,686.19,684.44,0.25402294]
[1752608707197,0.98032939,685.28,684.44,0.25402294]
[1752608707495,0.98032939,685.34,684.47,0.98129447]
[1752608707999,0.98032939,685.32,684.45,0.98129447]
[1752608708297,0.98032939,685.33,684.45,0.98129447]
[1752608708495,0.98032939,685.34,684.52,0.98129447]
[1752608709000,1.9606587,685.66,684.44,0.25402294]
[1752608709001,0.98032939,685.32,684.5,0.98129447]
[1752608709195,0.98032939,685.31,684.49,0.98129447]
[1752608709499,0.98032939,685.27,684.5,0.98129447]
[1752608709895,3.2677646,686.09,684.44,0.25402294]
[1752608709896,0.98032939,685.2,684.44,0.25402294]
[1752608710501,0.98032939,685.22,684.44,0.25402294]
[1752608710699,0.98032939,685.12,684.44,0.25402294]
[1752608711202,0.98032939,685.13,684.44,0.25402294]
[1752608712202,0.98032939,685.15,684.44,0.25402294]
[1752608712898,0.98032939,685.15,684.29,0.98129447]
[1752608713097,0.98032939,685.15,684.37,0.25410641]
[1752608713498,0.98032939,685.17,684.37,0.25410641]
[1752608713697,0.98032939,685.18,684.37,0.25410641]
[1752608713903,0.98032939,685.19,684.37,0.25410641]
[1752608714701,0.98032939,685.18,684.37,0.25410641]
[1752608715204,0.98032939,685.19,684.37,0.25410641]
[1752608715703,0.98032939,685.18,684.37,0.25410641]
[1752608716306,0.98032939,685.19,684.37,0.25410641]
[1752608717304,0.98032939,685.2,684.37,0.25410641]
[1752608718503,0.98032939,685.21,684.37,0.25410641]
[1752608718803,0.98032939,685.22,684.37,0.25410641]
[1752608721207,0.98032939,685.23,684.37,0.25410641]
[1752608723307,0.98032939,685.22,684.37,0.25410641]
[1752608723711,0.97603865,685.22,684.37,0.25410641]
[1752608724408,0.97603865,685.21,684.37,0.25410641]
[1752608727410,1.3071058,685.34,684.37,0.25410641]
[1752608727615,0.97575119,685.2,684.37,0.25410641]
[1752608728214,0.97575119,685.21,684.37,0.25410641]
[1752608728415,0.97575119,685.2,684.37,0.25410641]
[1752608728715,0.97575119,685.18,684.37,0.25410641]
[1752608728916,0.97575119,685.17,684.37,0.25410641]
[1752608730314,0.97575119,685.18,684.37,0.25410641]
[1752608730514,0.97575119,685.17,684.37,0.25410641]
[1752608730718,0.97575119,685.18,684.37,0.25410641]
[1752608730919,0.97575119,685.2,684.37,0.25410641]
[1752608731116,0.97575119,685.22,684.37,0.25410641]
[1752608731415,0.97575119,685.21,684.37,0.25410641]
[1752608732315,0.97575119,685.2,684.37,0.25410641]
[1752608733519,0.97575119,685.19,684.37,0.25410641]
[1752608734420,0.97575119,685.18,684.37,0.25410641]
[1752608734721,0.97575119,685.16,684.37,0.25410641]
[1752608735921,0.97575119,685.18,684.37,0.25410641]
[1752608736421,0.97575119,685.17,684.37,0.25410641]
[1752608737022,0.97575119,685.18,684.37,0.25410641]
[1752608737223,0.97575119,685.16,684.31,0.97781505]
[1752608737521,0.97575119,685.15,684.31,0.97781505]
[1752608737921,0.97575119,685.15,684.27,0.25412311]
[1752608737922,0.97575119,685.15,684.3,0.97781505]
[1752608738423,0.97575119,685.15,684.27,0.25412311]
[1752608738424,0.97575119,685.13,684.29,0.97781505]
[1752608739322,0.97575119,685.12,684.29,0.97781505]
[1752608739523,0.97575119,685.14,684.28,0.97781505]
[1752608739823,0.97575119,685.13,684.28,0.97781505]
[1752608740024,0.97575119,685.11,684.27,0.25412311]
[1752608740420,0.97575119,685.1,684.27,0.25412311]
[1752608740724,0.97575119,685.08,684.27,0.25412311]
[1752608741319,0.97575119,685.07,684.27,0.25412311]
[1752608741618,0.97575119,685.11,684.27,0.25412311]
[1752608742725,0.97575119,685.12,684.27,0.25412311]
[1752608743421,0.97575119,685.14,684.27,0.25412311]
[1752608744122,0.97575119,685.15,684.27,0.25412311]
[1752608744425,0.97575119,685.1,684.27,0.25412311]
[1752608744619,0.97575119,685.1,684.21,0.97781505]
[1752608744823,0.97575119,685.12,684.23,0.97781505]
[1752608745020,0.97575119,685.12,684.15,0.25415559]
[1752608745021,0.97575119,685.08,684.26,0.97781505]
[1752608745522,0.97575119,685.06,684.27,0.97781505]
[1752608746424,3.2677646,685.91,684.28,0.97781505]
[1752608746425,0.97575119,685.05,684.28,0.97781505]
[1752608746825,0.97575119,685.07,684.27,0.97781505]
[1752608747522,0.97575119,685.07,684.15,0.25415559]
[1752608747523,0.97575119,685.08,684.3,0.97781505]
[1752608748423,0.97575119,685.07,684.32,0.97781505]
[1752608749327,0.97575119,685.06,684.32,0.97781505]
[1752608749522,0.97575119,685.05,684.33,0.97781505]
[1752608749925,0.97575119,685.04,684.32,0.97781505]
[1752608750125,0.97575119,685.0,684.28,0.97781505]
[1752608750328,0.97575119,685.0,684.15,0.25415559]
[1752608750329,0.97575119,685.0,684.29,0.97781505]
[1752608750628,3.2677646,685.92,684.28,0.97781505]
[1752608750629,0.97575119,685.01,684.28,0.97781505]
[1752608750827,0.97902697,685.01,684.28,0.98245374]
[1752608751026,0.97902697,685.03,684.26,0.98245374]
[1752608751224,0.97902697,685.03,684.25,0.98245374]
[1752608751529,0.97902697,685.03,684.08,1.3083926]
[1752608751530,0.97902697,684.99,684.23,0.98245374]
[1752608751724,0.97902697,684.98,684.24,0.98245374]
[1752608752026,0.97902697,684.92,684.17,0.98245374]
[1752608753030,1.9606587,685.26,684.01,0.25418715]
[1752608753031,0.97902697,684.83,684.14,0.98245374]
[1752608753333,0.97902697,684.84,684.12,0.98245374]
[1752608753932,0.97902697,684.81,684.09,0.98245374]
[1752608754332,0.97902697,684.82,684.09,0.98245374]
[1752608754533,0.97902697,684.82,684.08,0.98245374]
[1752608754834,0.97902697,684.81,684.09,0.98245374]
[1752608755235,0.97902697,684.82,684.08,0.98245374]
[1752608755437,0.97902697,684.81,684.08,0.98245374]
[1752608756038,0.97902697,684.82,684.08,0.98245374]
[1752608757437,0.97902697,684.83,684.07,0.98245374]
[1752608759239,0.97902697,684.84,684.06,0.98245374]
[1752608759542,0.97902697,684.84,684.07,0.98245374]
[1752608760544,0.97902697,684.8,684.03,0.98245374]
[1752608761244,0.97902697,684.84,684.0,0.98245374]
[1752608761544,0.97902697,684.85,683.99,0.98245374]
[1752608761744,0.97902697,684.79,683.93,0.98245374]
[1752608762340,0.97902697,684.8,683.92,0.98245374]
[1752608763046,0.97902697,684.79,683.91,0.98245374]
[1752608763245,0.97902697,684.78,683.9,0.98245374]
[1752608763548,0.97902697,684.78,683.88,0.98245374]
[1752608763745,0.97902697,684.77,683.88,0.98245374]
[1752608763942,0.97902697,684.76,683.88,0.98245374]
[1752608764342,0.97902697,684.74,683.84,0.98245374]
[1752608764544,0.97902697,684.69,683.83,0.25425586]
[1752608765245,0.97902697,684.68,683.83,0.25425586]
[1752608765450,0.97902697,684.66,683.83,0.25425586]
[1752608765744,0.97560468,684.64,683.83,0.25425586]
[1752608766448,4.5748705,685.75,683.83,0.25425586]
[1752608766449,0.97560468,684.66,683.83,0.25425586]
[1752608767251,3.2677646,685.48,683.83,0.25425586]
[1752608767252,0.97560468,684.67,683.83,0.25425586]
[1752608767445,0.97560468,684.68,683.83,0.25425586]
[1752608767945,0.97560468,684.71,683.83,0.25425586]
[1752608768151,0.97560468,684.72,683.83,0.25425586]
[1752608768951,0.97560468,684.73,683.83,0.25425586]
[1752608769152,0.97560468,684.79,683.87,0.98033021]
[1752608769553,0.97560468,684.8,683.87,0.98033021]
[1752608770049,0.97560468,684.79,683.86,0.98033021]
[1752608770353,0.97560468,684.8,683.86,0.98033021]
[1752608771449,0.25426237,684.72,683.86,0.98033021]
[1752608772951,0.25426237,684.72,683.85,0.98033021]
[1752608773151,0.97560468,684.85,683.88,0.98033021]
[1752608773350,0.97560468,684.85,683.87,0.98033021]
[1752608773656,0.25424379,684.81,683.87,0.98033021]
[1752608775660,0.25424379,684.81,683.88,0.98033021]
[1752608777262,0.25424379,684.81,683.89,0.98033021]
[1752608777766,0.25424379,684.81,683.88,0.98033021]
[1752608779268,0.25424379,684.81,683.89,0.98033021]
[1752608779768,0.25424379,684.81,683.88,0.98033021]
[1752608780968,0.97560468,684.79,683.85,0.98033021]
[1752608781168,0.97560468,684.79,683.86,0.98033021]
[1752608781865,0.97560468,684.78,683.86,0.98033021]
[1752608782869,0.97560468,684.77,683.86,0.98033021]
[1752608784670,0.97560468,684.75,683.87,0.98033021]
[1752608786483,0.97560468,684.76,683.87,0.98033021]
[1752608786773,0.97560468,684.75,683.87,0.98033021]
[1752608786969,0.97560468,684.76,683.83,0.25425586]
[1752608787170,0.97560468,684.75,683.83,0.25425586]
[1752608787372,0.97560468,684.72,683.83,0.25425586]
[1752608787872,0.97408892,684.72,683.83,0.25425586]
[1752608788870,0.97408892,684.74,683.83,0.25425586]
[1752608789575,0.97408892,684.73,683.83,0.25425586]
[1752608790372,1.22833271,684.81,683.83,0.25425586]
[1752608790577,0.97408892,684.79,683.83,0.25425586]
[1752608790971,0.25424379,684.81,683.83,0.25425586]
[1752608792372,1.22833271,684.81,683.83,0.25425586]
[1752608792972,0.25424379,684.81,683.83,0.25425586]
[1752608793276,1.22833271,684.81,683.83,1.23304154]
[1752608794476,0.97408892,684.8,683.83,1.23304154]
[1752608794872,1.22833271,684.81,683.84,0.97878568]
[1752608795276,0.97408892,684.8,683.84,0.97878568]
[1752608795777,0.97408892,684.78,683.86,0.97878568]
[1752608796275,0.97408892,684.75,683.88,0.97878568]
[1752608797278,0.97408892,684.74,683.89,0.97878568]
[1752608797775,0.97408892,684.77,683.87,0.97878568]
[1752608798177,0.97408892,684.77,683.88,0.97878568]
[1752608798477,0.25424379,684.81,683.83,0.25425586]
[1752608806283,1.22833271,684.81,683.83,0.25425586]
[1752608807185,0.97408892,684.8,683.83,0.25425586]
[1752608808188,0.97408892,684.78,683.83,0.25425586]
[1752608808385,0.97408892,684.77,683.83,0.25425586]
[1752608808788,0.97408892,684.65,683.86,0.97878568]
[1752608809187,0.97408892,684.66,683.86,0.97878568]
[1752608809389,0.97408892,684.63,683.88,0.97878568]
[1752608809588,0.97408892,684.62,683.89,0.97878568]
[1752608809787,0.97408892,684.61,683.9,0.97878568]
[1752608810290,0.97408892,684.61,683.83,0.25425586]
[1752608810291,0.97408892,684.59,683.91,0.97878568]
[1752608811391,0.97408892,684.57,683.93,0.97878568]
[1752608812201,0.97408892,684.57,683.94,0.97878568]
[1752608812690,0.97408892,684.56,683.94,0.97878568]
[1752608812888,0.97408892,684.57,683.94,0.97878568]
[1752608813194,0.97408892,684.56,683.94,0.97878568]
[1752608813696,0.97408892,684.59,683.92,0.97878568]
[1752608813896,0.25424379,684.81,683.83,0.25425586]
[1752608813897,0.97408892,684.58,683.91,0.97878568]
[1752608814189,0.97408892,684.55,683.93,0.97878568]
[1752608815592,0.97408892,684.56,683.94,0.97878568]
[1752608816493,0.97408892,684.56,683.95,0.97878568]
[1752608817196,0.97408892,684.56,683.96,0.97878568]
[1752608818097,1.3071058,684.71,683.83,0.25425586]
[1752608818298,0.97976975,684.55,683.96,0.98437952]
[1752608818596,0.25424379,684.81,683.94,0.98437952]
[1752608818597,0.97976975,684.54,683.94,0.98437952]
[1752608818997,0.97976975,684.53,683.93,0.98437952]
[1752608819191,0.97976975,684.53,683.94,0.98437952]
[1752608819697,0.97976975,684.55,683.92,0.98437952]
[1752608819997,0.97976975,684.53,683.9,0.98437952]
[1752608820497,0.97976975,684.5,683.87,0.98437952]
[1752608821496,0.97976975,684.48,683.89,0.98437952]
[1752608821697,1.3071058,684.62,683.83,0.25425586]
[1752608821698,0.97976975,684.47,683.88,0.98437952]
[1752608822399,0.97976975,684.48,683.88,0.98437952]
[1752608822694,0.97976975,684.48,683.83,0.25425586]
[1752608822695,0.97976975,684.48,683.87,0.98437952]
[1752608823997,0.97976975,684.52,683.77,0.98437952]
[1752608824197,0.97976975,684.49,683.74,0.98437952]
[1752608824395,0.97976975,684.46,683.69,0.98437952]
[1752608824994,1.3071058,684.66,683.62,0.2543525]
[1752608824995,0.97976975,684.44,683.66,0.98437952]
[1752608825496,0.97976975,684.45,683.65,0.98437952]
[1752608825696,0.97976975,684.44,683.64,0.98437952]
[1752608826393,0.97976975,684.44,683.63,0.98437952]
[1752608827398,0.97976975,684.45,683.62,1.23873202]
[1752608828298,0.97976975,684.46,683.62,0.2543525]
[1752608828695,0.97976975,684.47,683.62,0.2543525]
[1752608828994,0.97976975,684.36,683.68,0.98437952]
[1752608829194,0.97976975,684.35,683.68,0.98437952]
[1752608829398,0.97976975,684.36,683.67,0.98437952]
[1752608829597,0.97976975,684.36,683.68,0.98437952]
[1752608829798,0.97976975,684.37,683.68,0.98437952]
[1752608830398,0.97976975,684.37,683.66,0.98437952]
[1752608831194,0.97976975,684.39,683.65,0.98437952]
[1752608831401,0.97976975,684.38,683.64,0.98437952]
[1752608831596,0.97976975,684.32,683.62,0.2543525]
[1752608832500,0.97976975,684.33,683.62,0.2543525]
[1752608832698,0.97976975,684.33,683.56,0.98437952]
[1752608833403,0.97976975,684.3,683.55,0.98437952]
[1752608833900,0.97976975,684.29,683.54,0.98437952]
[1752608834103,0.97976975,684.2,683.44,0.98437952]
[1752608834303,0.97976975,684.23,683.43,1.23880361]
[1752608834503,0.97976975,684.24,683.43,0.25442409]
[1752608834998,0.97976975,684.25,683.43,0.25442409]
[1752608835400,0.97976975,684.26,683.43,0.25442409]
[1752608835800,0.97976975,684.27,683.43,0.25442409]
[1752608836604,0.97976975,684.29,683.43,0.25442409]
[1752608836804,0.97976975,684.3,683.43,0.25442409]
[1752608837004,0.97976975,684.32,683.43,0.25442409]
[1752608837305,0.25424379,684.81,683.46,0.98437952]
[1752608837306,0.97976975,684.4,683.46,0.98437952]
[1752608838902,0.97976975,684.38,683.47,0.98437952]
[1752608839305,0.97976975,684.38,683.46,0.98437952]
[1752608839502,0.97976975,684.4,683.45,0.98437952]
[1752608840604,0.97976975,684.41,683.45,0.98437952]
[1752608840903,0.97976975,684.4,683.44,0.98437952]
[1752608841207,0.97976975,684.38,683.43,0.25442409]
[1752608843103,0.97976975,684.39,683.43,0.25442409]
[1752608843302,0.97976975,684.38,683.43,0.25442409]
[1752608843507,0.97976975,684.39,683.43,0.25442409]
[1752608844405,0.97976975,684.4,683.43,0.25442409]
[1752608845710,0.97976975,684.41,683.43,0.25442409]
[1752608846009,0.25424379,684.81,683.43,0.25442409]
[1752608846010,0.97976975,684.4,683.43,0.25442409]
[1752608846309,0.97976975,684.41,683.43,0.25442409]
[1752608846609,0.97976975,684.39,683.43,0.25442409]
[1752608848409,0.97976975,684.4,683.43,0.25442409]
[1752608848612,0.97976975,684.39,683.43,0.25442409]
[1752608849111,0.97976975,684.4,683.43,0.25442409]
[1752608849510,0.97976975,684.37,683.43,0.25442409]
[1752608849709,0.25424379,684.81,683.43,0.25442409]
[1752608849710,0.97976975,684.39,683.43,0.25442409]
[1752608850305,0.97976975,684.37,683.43,0.25442409]
[1752608850810,0.97976975,684.38,683.43,0.25442409]
[1752608851011,0.97976975,684.39,683.43,0.25442409]
[1752608851207,0.97976975,684.41,683.44,0.98437952]
[1752608851411,0.97976975,684.4,683.44,0.98437952]
[1752608851910,0.97976975,684.41,683.44,0.98437952]
[1752608852117,0.97976975,684.42,683.45,0.98437952]
[1752608852317,0.97976975,684.42,683.46,0.98437952]
[1752608852618,0.97976975,684.43,683.46,0.98437952]
[1752608853117,0.97976975,684.42,683.45,0.98437952]
[1752608853318,0.97976975,684.42,683.46,0.98437952]
[1752608854216,0.97976975,684.45,683.49,0.98437952]
[1752608854412,0.97976975,684.45,683.5,0.98437952]
[1752608854617,1.9606587,684.73,683.43,0.25442409]
[1752608854618,0.97976975,684.48,683.53,0.98437952]
[1752608854812,0.97976975,684.47,683.54,0.98437952]
[1752608855414,0.97976975,684.4,683.49,0.98437952]
[1752608855815,0.97976975,684.37,683.46,0.98437952]
[1752608856519,0.97976975,684.36,683.46,0.98437952]
[1752608856818,0.97169985,684.36,683.46,0.97977737]
[1752608857013,0.97169985,684.36,683.45,0.97977737]
[1752608858415,0.97169985,684.34,683.46,0.97977737]
[1752608858921,0.97169985,684.3,683.43,0.25442409]
[1752608859115,0.97169985,684.34,683.43,0.25442409]
[1752608859318,0.97169985,684.33,683.43,0.25442409]
[1752608859717,0.97169985,684.44,683.43,0.25442409]
[1752608860021,0.97169985,684.5,683.43,0.25442409]